{"text_format":"3","workbook":"xlsx","n_sheets":4,"sheets":["Начало","Отчет за месечния бюджет","Месечни разходи","Допълнителни данни"],"not_rendered":{"charts":1,"defined_names":4,"pivot_tables":2},"read":"whole","date_system":"1900"}

{"sheet":"Начало","index":0,"n_rows":8,"n_cols":2,"rows_kept":8}
[null,"ЗА ТОЗИ ШАБЛОН"]
[null,"Използвайте тази работна книга, за да проследявате разходите си и да създадете семейство бюджет."]
[null,"Въведете планираните и действителните приходи от различни източници в работния лист \"Отчет за месечния бюджет\" и планираните и действителните суми, изхарчени в различни категории в работния лист \"Месечни разходи\"."]
[null,"Планиран и действителен баланс и разлика се изчисляват автоматично, а диаграмите \"Резюме на бюджета\" и \"Общ преглед на бюджета\" се актуализират в работния лист \"Отчет за месечния бюджет\"."]
[null,"Можете да промените или да въведете нова категория в таблица в работния лист \"Допълнителни данни\"."]
[null,"Забележка: "]
[null,"Предоставени са допълнителни инструкции в колона A в работния лист ОТЧЕТ ЗА МЕСЕЧНИЯ БЮДЖЕТ и в клетка A1 в работните листове МЕСЕЧНИ РАЗХОДИ и ДОПЪЛНИТЕЛНИ ДАННИ. Този текст е скрит нарочно. За да премахнете текста, изберете колона А или клетка A1, след което изберете DELETE. За да покажете текст, изберете колона A или клетка A1, след което променете цвета на шрифта."]
[null,"За да научите повече за таблиците, натиснете SHIFT и след това F10 в таблица, изберете опцията ТАБЛИЦА, след което изберете АЛТЕРНАТИВЕН ТЕКСТ. За обобщените таблици натиснете SHIFT и след това F10 в таблица, изберете ОПЦИИ ЗА ОБОБЩЕНА ТАБЛИЦИ, след което изберете раздела АЛТЕРНАТИВЕН ТЕКСТ."]

{"sheet":"Отчет за месечния бюджет","index":1,"n_rows":34,"n_cols":14,"rows_kept":34,"merged":[[0,1,0,4],[0,5,0,7],[0,12,0,13],[1,9,5,13],[2,2,2,5],[3,2,3,5],[4,2,4,5],[7,1,10,1],[7,5,10,5],[7,6,10,6],[8,9,31,9],[12,1,16,1],[12,5,16,5],[12,6,16,6],[19,1,34,6]]}
["Създайте отчет за месечния бюджет в този работен лист. Заглавието на този работен лист е в клетката вдясно, а подзаглавието – в клетка J1. Изберете клетка F1, за да отидете на работния лист \"Месечни разходи\". Други полезни инструкции как да използвате този работен лист, можете да намерите в клетките в тази колона.","Общ преглед на бюджета",{"$nulls":3},"Месечни разходи",{"$nulls":3},"Резюме на бюджета",null,null,"Една дръжка на пшеница със зелен цвят е в тази клетка."]
["Етикетът за \"Баланс\" е в клетката вдясно. Сегментаторите на обобщена таблица за филтриране на данните в таблицата са в клетки от J2 до N6. За да изберете няколко категории, задръжте клавиша Control.","Баланс",{"$nulls":7},"В тази клетка се намира сегментаторът по категория за филтриране на обобщената таблица по-долу по избраната категория."]
["Етикетът \"Планиран баланс\" е в клетката вдясно. Планиран баланс се изчислява автоматично в клетка G3.","Планиран баланс","(планирани минус разходи)",{"$nulls":3},{"$f":"D17-SUM(БюджетПодробности[Планиран разход])","v":{"v":1585,"d":"1,585 лв."}}]
["Етикетът \"Действителен баланс\" е в клетката вдясно. Действителен баланс се изчислява автоматично в клетка G4.","Действителен баланс ","(действителни минус разходи)",{"$nulls":3},{"$f":"D11-SUM(БюджетПодробности[Действителен разход])","v":{"v":1740,"d":"1,740 лв."}}]
["Етикетът \"Разлика\" е в клетката вдясно. Разлика се изчислява автоматично в клетка G5. Следващата инструкция е в клетка A7.","Разлика","(действителни минус планирани)",{"$nulls":3},{"$f":"G4-G3","v":{"v":155,"d":"155 лв."}}]
[]
["Етикетът \"Приходи\" е в клетката вдясно, етикетът \"Разходи\" е в клетка F7 и съветът за резюме на бюджета е в клетка J7.","Приходи",{"$nulls":3},"Разходи",{"$nulls":3},"Изберете обобщената таблица по-долу и след това изберете Обнови в раздела \"Анализиране\"."]
["Етикетът \"Действителни приходи\" е в клетката вдясно, а етикетът \"Действителни разходи\" е в клетка F8. Въведете приход 1 в клетка D8. Действителните разходи се изчисляват автоматично в клетка G8.","ДЕЙСТВИТЕЛНИ","Приходи 1",{"v":5800,"d":"5,800 лв."},null,"ДЕЙСТВИТЕЛНИ",{"$f":"SUM(БюджетПодробности[Действителен разход])","v":{"v":7860,"d":"7,860 лв."}}]
["Въведете приход 2 в клетка D9. Изображението е в клетка J9. Обобщена таблица започва в клетка K9. За да актуализирате обобщената таблица, изберете \"Обнови\" в раздела \"Анализиране\".",null,"Приходи 2",{"v":2300,"d":"2,300 лв."},{"$nulls":5},"В тази клетка се намира изображение.","Категория","Планиран разход ","Действителен разход ","Разлика "]
["Въведете допълнителни приходи в клетка D10.",null,"Допълнителни приходи",{"v":1500,"d":"1,500 лв."},{"$nulls":6},"Деца",{"v":140,"d":"140 лв."},{"v":140,"d":"140 лв."},{"v":0,"d":"0 лв."}]
["Етикетът \"Общо приходи\" е в клетка C11 и общо приходи се изчисляват автоматично в клетка D11. Следващата инструкция е в клетка A13.",null,"Общо приходи",{"$f":"SUM(D8:D10)","v":{"v":9600,"d":"9,600 лв."}}]
[{"$nulls":10},"Развлечения",{"v":400,"d":"400 лв."},{"v":358,"d":"358 лв."},{"v":42,"d":"42 лв."}]
["Етикетът \"Планирани приходи\" е в клетката вдясно, а етикетът \"Планирани разходи\" е в клетка F13. Планираните разходи се изчисляват автоматично в клетка G13.","ПЛАНИРАНИ",{"$nulls":3},"ПЛАНИРАНИ",{"$f":"SUM(БюджетПодробности[Планиран разход])","v":{"v":7915,"d":"7,915 лв."}}]
["Въведете планиран приход 1 в клетка D14.",null,"Приходи 1",{"v":6000,"d":"6,000 лв."},{"$nulls":6},"Храна",{"v":1100,"d":"1,100 лв."},{"v":1320,"d":"1,320 лв."},{"v":-220,"d":"-220 лв."}]
["Въведете планиран приход 2 в клетка D15.",null,"Приходи 2",{"v":1000,"d":"1,000 лв."}]
["Въведете допълнителни приходи в клетка D16.",null,"Допълнителни приходи",{"v":2500,"d":"2,500 лв."},{"$nulls":6},"Подаръци и дарения",{"v":100,"d":"100 лв."},{"v":125,"d":"125 лв."},{"v":-25,"d":"-25 лв."}]
["Етикетът \"Общо приходи\" е в клетка C17 и общо приходи се изчисляват автоматично в клетка D17. Следващата инструкция е в клетка A20.",null,"Общо приходи",{"$f":"SUM(D14:D16)","v":{"v":9500,"d":"9,500 лв."}}]
[{"$nulls":10},"Домакинство",{"v":2830,"d":"2,830 лв."},{"v":2702,"d":"2,702 лв."},{"v":128,"d":"128 лв."}]
[]
["Кръговата диаграма, показваща процента на разходите по категория, е в клетката вдясно.","Кръговата диаграма, показваща процента на разходите по категория, е в тази клетка.",{"$nulls":8},"Застраховка",{"v":900,"d":"900 лв."},{"v":900,"d":"900 лв."},{"v":0,"d":"0 лв."}]
[]
[{"$nulls":10},"Заеми",{"v":200,"d":"200 лв."},{"v":200,"d":"200 лв."},{"v":0,"d":"0 лв."}]
[]
[{"$nulls":10},"Хигиенни материали",{"v":150,"d":"150 лв."},{"v":140,"d":"140 лв."},{"v":10,"d":"10 лв."}]
[]
[{"$nulls":10},"Домашни любимци",{"v":170,"d":"170 лв."},{"v":100,"d":"100 лв."},{"v":70,"d":"70 лв."}]
[]
[{"$nulls":10},"Спестявания или инвестиции",{"v":200,"d":"200 лв."},{"v":200,"d":"200 лв."},{"v":0,"d":"0 лв."}]
[]
[{"$nulls":10},"Данъци",{"v":300,"d":"300 лв."},{"v":300,"d":"300 лв."},{"v":0,"d":"0 лв."}]
[]
[{"$nulls":10},"Транспорт",{"v":1425,"d":"1,425 лв."},{"v":1375,"d":"1,375 лв."},{"v":50,"d":"50 лв."}]
[]
[{"$nulls":10},"Обща сума",{"v":7915,"d":"7,915 лв."},{"v":7860,"d":"7,860 лв."},{"v":55,"d":"55 лв."}]

{"sheet":"Месечни разходи","index":2,"n_rows":62,"n_cols":7,"rows_kept":62,"merged":[[0,1,0,4],[0,5,0,6]]}
["Изчислете месечни разходи в този работен лист. Заглавието на този работен лист е в клетката вдясно. Изберете клетка F1, за да отидете на работния лист \"Отчет за месечния бюджет\".","Месечни разходи",{"$nulls":3},"Отчет за месечния бюджет"]
[" Въведете данни в таблицата \"Бюджет Подробности\", като започнете от клетката вдясно.","Описание","Категория","Планиран разход","Действителен разход","Разлика","Общ преглед на действителните разходи"]
[null,"Извънкласни дейности","Деца",{"v":40,"d":"40 лв."},{"v":40,"d":"40 лв."},{"$f":"БюджетПодробности[[#This Row],[Планиран разход]]-БюджетПодробности[[#This Row],[Действителен разход]]","v":{"v":0,"d":"0 лв."}},{"$f":"БюджетПодробности[[#This Row],[Действителен разход]]","v":{"v":40,"d":"40 лв."}}]
[null,"Медицински","Деца",null,null,{"$f":"БюджетПодробности[[#This Row],[Планиран разход]]-БюджетПодробности[[#This Row],[Действителен разход]]","v":{"v":0,"d":"0 лв."}},{"$f":"БюджетПодробности[[#This Row],[Действителен разход]]","v":{"v":0,"d":"0 лв."}}]
[null,"Училищни пособия","Деца",null,null,{"$f":"БюджетПодробности[[#This Row],[Планиран разход]]-БюджетПодробности[[#This Row],[Действителен разход]]","v":{"v":0,"d":"0 лв."}},{"$f":"БюджетПодробности[[#This Row],[Действителен разход]]","v":{"v":0,"d":"0 лв."}}]
[null,"Обучение в училище","Деца",{"v":100,"d":"100 лв."},{"v":100,"d":"100 лв."},{"$f":"БюджетПодробности[[#This Row],[Планиран разход]]-БюджетПодробности[[#This Row],[Действителен разход]]","v":{"v":0,"d":"0 лв."}},{"$f":"БюджетПодробности[[#This Row],[Действителен разход]]","v":{"v":100,"d":"100 лв."}}]
[null,"Концерти","Развлечения",{"v":50,"d":"50 лв."},{"v":40,"d":"40 лв."},{"$f":"БюджетПодробности[[#This Row],[Планиран разход]]-БюджетПодробности[[#This Row],[Действителен разход]]","v":{"v":10,"d":"10 лв."}},{"$f":"БюджетПодробности[[#This Row],[Действителен разход]]","v":{"v":40,"d":"40 лв."}}]
[null,"Театър на живо","Развлечения",{"v":200,"d":"200 лв."},{"v":150,"d":"150 лв."},{"$f":"БюджетПодробности[[#This Row],[Планиран разход]]-БюджетПодробности[[#This Row],[Действителен разход]]","v":{"v":50,"d":"50 лв."}},{"$f":"БюджетПодробности[[#This Row],[Действителен разход]]","v":{"v":150,"d":"150 лв."}}]
[null,"Филми","Развлечения",{"v":50,"d":"50 лв."},{"v":28,"d":"28 лв."},{"$f":"БюджетПодробности[[#This Row],[Планиран разход]]-БюджетПодробности[[#This Row],[Действителен разход]]","v":{"v":22,"d":"22 лв."}},{"$f":"БюджетПодробности[[#This Row],[Действителен разход]]","v":{"v":28,"d":"28 лв."}}]
[null,"Музика (компактдискове, изтегляния и т.н.)","Развлечения",{"v":50,"d":"50 лв."},{"v":30,"d":"30 лв."},{"$f":"БюджетПодробности[[#This Row],[Планиран разход]]-БюджетПодробности[[#This Row],[Действителен разход]]","v":{"v":20,"d":"20 лв."}},{"$f":"БюджетПодробности[[#This Row],[Действителен разход]]","v":{"v":30,"d":"30 лв."}}]
[null,"Спортни събития","Развлечения",{"v":0,"d":"0 лв."},{"v":40,"d":"40 лв."},{"$f":"БюджетПодробности[[#This Row],[Планиран разход]]-БюджетПодробности[[#This Row],[Действителен разход]]","v":{"v":-40,"d":"-40 лв."}},{"$f":"БюджетПодробности[[#This Row],[Действителен разход]]","v":{"v":40,"d":"40 лв."}}]
[null,"Видео/DVD (закупуване)","Развлечения",{"v":20,"d":"20 лв."},{"v":50,"d":"50 лв."},{"$f":"БюджетПодробности[[#This Row],[Планиран разход]]-БюджетПодробности[[#This Row],[Действителен разход]]","v":{"v":-30,"d":"-30 лв."}},{"$f":"БюджетПодробности[[#This Row],[Действителен разход]]","v":{"v":50,"d":"50 лв."}}]
[null,"Видео/DVD (под наем)","Развлечения",{"v":30,"d":"30 лв."},{"v":20,"d":"20 лв."},{"$f":"БюджетПодробности[[#This Row],[Планиран разход]]-БюджетПодробности[[#This Row],[Действителен разход]]","v":{"v":10,"d":"10 лв."}},{"$f":"БюджетПодробности[[#This Row],[Действителен разход]]","v":{"v":20,"d":"20 лв."}}]
[null,"Заведения","Храна",{"v":1000,"d":"1,000 лв."},{"v":1200,"d":"1,200 лв."},{"$f":"БюджетПодробности[[#This Row],[Планиран разход]]-БюджетПодробности[[#This Row],[Действителен разход]]","v":{"v":-200,"d":"-200 лв."}},{"$f":"БюджетПодробности[[#This Row],[Действителен разход]]","v":{"v":1200,"d":"1,200 лв."}}]
[null,"Хранителни стоки","Храна",{"v":100,"d":"100 лв."},{"v":120,"d":"120 лв."},{"$f":"БюджетПодробности[[#This Row],[Планиран разход]]-БюджетПодробности[[#This Row],[Действителен разход]]","v":{"v":-20,"d":"-20 лв."}},{"$f":"БюджетПодробности[[#This Row],[Действителен разход]]","v":{"v":120,"d":"120 лв."}}]
[null,"Благотворителност 1","Подаръци и дарения",{"v":75,"d":"75 лв."},{"v":100,"d":"100 лв."},{"$f":"БюджетПодробности[[#This Row],[Планиран разход]]-БюджетПодробности[[#This Row],[Действителен разход]]","v":{"v":-25,"d":"-25 лв."}},{"$f":"БюджетПодробности[[#This Row],[Действителен разход]]","v":{"v":100,"d":"100 лв."}}]
[null,"Благотворителност 2","Подаръци и дарения",{"v":25,"d":"25 лв."},{"v":25,"d":"25 лв."},{"$f":"БюджетПодробности[[#This Row],[Планиран разход]]-БюджетПодробности[[#This Row],[Действителен разход]]","v":{"v":0,"d":"0 лв."}},{"$f":"БюджетПодробности[[#This Row],[Действителен разход]]","v":{"v":25,"d":"25 лв."}}]
[null,"Подарък 1","Подаръци и дарения",null,null,{"$f":"БюджетПодробности[[#This Row],[Планиран разход]]-БюджетПодробности[[#This Row],[Действителен разход]]","v":{"v":0,"d":"0 лв."}},{"$f":"БюджетПодробности[[#This Row],[Действителен разход]]","v":{"v":0,"d":"0 лв."}}]
[null,"Подарък 2","Подаръци и дарения",null,null,{"$f":"БюджетПодробности[[#This Row],[Планиран разход]]-БюджетПодробности[[#This Row],[Действителен разход]]","v":{"v":0,"d":"0 лв."}},{"$f":"БюджетПодробности[[#This Row],[Действителен разход]]","v":{"v":0,"d":"0 лв."}}]
[null,"Кабелна/сателитна ТВ","Домакинство",{"v":100,"d":"100 лв."},{"v":100,"d":"100 лв."},{"$f":"БюджетПодробности[[#This Row],[Планиран разход]]-БюджетПодробности[[#This Row],[Действителен разход]]","v":{"v":0,"d":"0 лв."}},{"$f":"БюджетПодробности[[#This Row],[Действителен разход]]","v":{"v":100,"d":"100 лв."}}]
[null,"Ток","Домакинство",{"v":45,"d":"45 лв."},{"v":50,"d":"50 лв."},{"$f":"БюджетПодробности[[#This Row],[Планиран разход]]-БюджетПодробности[[#This Row],[Действителен разход]]","v":{"v":-5,"d":"-5 лв."}},{"$f":"БюджетПодробности[[#This Row],[Действителен разход]]","v":{"v":50,"d":"50 лв."}}]
[null,"Газ","Домакинство",{"v":300,"d":"300 лв."},{"v":400,"d":"400 лв."},{"$f":"БюджетПодробности[[#This Row],[Планиран разход]]-БюджетПодробности[[#This Row],[Действителен разход]]","v":{"v":-100,"d":"-100 лв."}},{"$f":"БюджетПодробности[[#This Row],[Действителен разход]]","v":{"v":400,"d":"400 лв."}}]
[null,"Почистване на дома","Домакинство",{"v":200,"d":"200 лв."},null,{"$f":"БюджетПодробности[[#This Row],[Планиран разход]]-БюджетПодробности[[#This Row],[Действителен разход]]","v":{"v":200,"d":"200 лв."}},{"$f":"БюджетПодробности[[#This Row],[Действителен разход]]","v":{"v":0,"d":"0 лв."}}]
[null,"Поддръжка","Домакинство",{"v":200,"d":"200 лв."},{"v":150,"d":"150 лв."},{"$f":"БюджетПодробности[[#This Row],[Планиран разход]]-БюджетПодробности[[#This Row],[Действителен разход]]","v":{"v":50,"d":"50 лв."}},{"$f":"БюджетПодробности[[#This Row],[Действителен разход]]","v":{"v":150,"d":"150 лв."}}]
[null,"Ипотека или наем","Домакинство",{"v":1700,"d":"1,700 лв."},{"v":1700,"d":"1,700 лв."},{"$f":"БюджетПодробности[[#This Row],[Планиран разход]]-БюджетПодробности[[#This Row],[Действителен разход]]","v":{"v":0,"d":"0 лв."}},{"$f":"БюджетПодробности[[#This Row],[Действителен разход]]","v":{"v":1700,"d":"1,700 лв."}}]
[null,"Парно/газ","Домакинство",null,null,{"$f":"БюджетПодробности[[#This Row],[Планиран разход]]-БюджетПодробности[[#This Row],[Действителен разход]]","v":{"v":0,"d":"0 лв."}},{"$f":"БюджетПодробности[[#This Row],[Действителен разход]]","v":{"v":0,"d":"0 лв."}}]
[null,"Онлайн/интернет услуги","Домакинство",{"v":100,"d":"100 лв."},{"v":100,"d":"100 лв."},{"$f":"БюджетПодробности[[#This Row],[Планиран разход]]-БюджетПодробности[[#This Row],[Действителен разход]]","v":{"v":0,"d":"0 лв."}},{"$f":"БюджетПодробности[[#This Row],[Действителен разход]]","v":{"v":100,"d":"100 лв."}}]
[null,"Телефон (мобилен)","Домакинство",{"v":60,"d":"60 лв."},{"v":60,"d":"60 лв."},{"$f":"БюджетПодробности[[#This Row],[Планиран разход]]-БюджетПодробности[[#This Row],[Действителен разход]]","v":{"v":0,"d":"0 лв."}},{"$f":"БюджетПодробности[[#This Row],[Действителен разход]]","v":{"v":60,"d":"60 лв."}}]
[null,"Телефон (домашен)","Домакинство",{"v":35,"d":"35 лв."},{"v":39,"d":"39 лв."},{"$f":"БюджетПодробности[[#This Row],[Планиран разход]]-БюджетПодробности[[#This Row],[Действителен разход]]","v":{"v":-4,"d":"-4 лв."}},{"$f":"БюджетПодробности[[#This Row],[Действителен разход]]","v":{"v":39,"d":"39 лв."}}]
[null,"Консумативи","Домакинство",{"v":40,"d":"40 лв."},{"v":55,"d":"55 лв."},{"$f":"БюджетПодробности[[#This Row],[Планиран разход]]-БюджетПодробности[[#This Row],[Действителен разход]]","v":{"v":-15,"d":"-15 лв."}},{"$f":"БюджетПодробности[[#This Row],[Действителен разход]]","v":{"v":55,"d":"55 лв."}}]
[null,"Такса смет","Домакинство",{"v":25,"d":"25 лв."},{"v":22,"d":"22 лв."},{"$f":"БюджетПодробности[[#This Row],[Планиран разход]]-БюджетПодробности[[#This Row],[Действителен разход]]","v":{"v":3,"d":"3 лв."}},{"$f":"БюджетПодробности[[#This Row],[Действителен разход]]","v":{"v":22,"d":"22 лв."}}]
[null,"ВИК","Домакинство",{"v":25,"d":"25 лв."},{"v":26,"d":"26 лв."},{"$f":"БюджетПодробности[[#This Row],[Планиран разход]]-БюджетПодробности[[#This Row],[Действителен разход]]","v":{"v":-1,"d":"-1 лв."}},{"$f":"БюджетПодробности[[#This Row],[Действителен разход]]","v":{"v":26,"d":"26 лв."}}]
[null,"Здраве","Застраховка",{"v":400,"d":"400 лв."},{"v":400,"d":"400 лв."},{"$f":"БюджетПодробности[[#This Row],[Планиран разход]]-БюджетПодробности[[#This Row],[Действителен разход]]","v":{"v":0,"d":"0 лв."}},{"$f":"БюджетПодробности[[#This Row],[Действителен разход]]","v":{"v":400,"d":"400 лв."}}]
[null,"Дом","Застраховка",{"v":400,"d":"400 лв."},{"v":400,"d":"400 лв."},{"$f":"БюджетПодробности[[#This Row],[Планиран разход]]-БюджетПодробности[[#This Row],[Действителен разход]]","v":{"v":0,"d":"0 лв."}},{"$f":"БюджетПодробности[[#This Row],[Действителен разход]]","v":{"v":400,"d":"400 лв."}}]
[null,"Живот","Застраховка",{"v":100,"d":"100 лв."},{"v":100,"d":"100 лв."},{"$f":"БюджетПодробности[[#This Row],[Планиран разход]]-БюджетПодробности[[#This Row],[Действителен разход]]","v":{"v":0,"d":"0 лв."}},{"$f":"БюджетПодробности[[#This Row],[Действителен разход]]","v":{"v":100,"d":"100 лв."}}]
[null,"Кредитна карта 1","Заеми",{"v":200,"d":"200 лв."},{"v":200,"d":"200 лв."},{"$f":"БюджетПодробности[[#This Row],[Планиран разход]]-БюджетПодробности[[#This Row],[Действителен разход]]","v":{"v":0,"d":"0 лв."}},{"$f":"БюджетПодробности[[#This Row],[Действителен разход]]","v":{"v":200,"d":"200 лв."}}]
[null,"Кредитна карта 2","Заеми",null,null,{"$f":"БюджетПодробности[[#This Row],[Планиран разход]]-БюджетПодробности[[#This Row],[Действителен разход]]","v":{"v":0,"d":"0 лв."}},{"$f":"БюджетПодробности[[#This Row],[Действителен разход]]","v":{"v":0,"d":"0 лв."}}]
[null,"Кредитна карта 3","Заеми",null,null,{"$f":"БюджетПодробности[[#This Row],[Планиран разход]]-БюджетПодробности[[#This Row],[Действителен разход]]","v":{"v":0,"d":"0 лв."}},{"$f":"БюджетПодробности[[#This Row],[Действителен разход]]","v":{"v":0,"d":"0 лв."}}]
[null,"Лични","Заеми",null,null,{"$f":"БюджетПодробности[[#This Row],[Планиран разход]]-БюджетПодробности[[#This Row],[Действителен разход]]","v":{"v":0,"d":"0 лв."}},{"$f":"БюджетПодробности[[#This Row],[Действителен разход]]","v":{"v":0,"d":"0 лв."}}]
[null,"Студентски","Заеми",null,null,{"$f":"БюджетПодробности[[#This Row],[Планиран разход]]-БюджетПодробности[[#This Row],[Действителен разход]]","v":{"v":0,"d":"0 лв."}},{"$f":"БюджетПодробности[[#This Row],[Действителен разход]]","v":{"v":0,"d":"0 лв."}}]
[null,"Облекло","Хигиенни материали",{"v":150,"d":"150 лв."},{"v":140,"d":"140 лв."},{"$f":"БюджетПодробности[[#This Row],[Планиран разход]]-БюджетПодробности[[#This Row],[Действителен разход]]","v":{"v":10,"d":"10 лв."}},{"$f":"БюджетПодробности[[#This Row],[Действителен разход]]","v":{"v":140,"d":"140 лв."}}]
[null,"Химическо чистене","Хигиенни материали",null,null,{"$f":"БюджетПодробности[[#This Row],[Планиран разход]]-БюджетПодробности[[#This Row],[Действителен разход]]","v":{"v":0,"d":"0 лв."}},{"$f":"БюджетПодробности[[#This Row],[Действителен разход]]","v":{"v":0,"d":"0 лв."}}]
[null,"Коса/нокти","Хигиенни материали",null,null,{"$f":"БюджетПодробности[[#This Row],[Планиран разход]]-БюджетПодробности[[#This Row],[Действителен разход]]","v":{"v":0,"d":"0 лв."}},{"$f":"БюджетПодробности[[#This Row],[Действителен разход]]","v":{"v":0,"d":"0 лв."}}]
[null,"Здравен клуб","Хигиенни материали",null,null,{"$f":"БюджетПодробности[[#This Row],[Планиран разход]]-БюджетПодробности[[#This Row],[Действителен разход]]","v":{"v":0,"d":"0 лв."}},{"$f":"БюджетПодробности[[#This Row],[Действителен разход]]","v":{"v":0,"d":"0 лв."}}]
[null,"Медицински","Хигиенни материали",null,null,{"$f":"БюджетПодробности[[#This Row],[Планиран разход]]-БюджетПодробности[[#This Row],[Действителен разход]]","v":{"v":0,"d":"0 лв."}},{"$f":"БюджетПодробности[[#This Row],[Действителен разход]]","v":{"v":0,"d":"0 лв."}}]
[null,"Храна","Домашни любимци",{"v":150,"d":"150 лв."},{"v":75,"d":"75 лв."},{"$f":"БюджетПодробности[[#This Row],[Планиран разход]]-БюджетПодробности[[#This Row],[Действителен разход]]","v":{"v":75,"d":"75 лв."}},{"$f":"БюджетПодробности[[#This Row],[Действителен разход]]","v":{"v":75,"d":"75 лв."}}]
[null,"Поддържане","Домашни любимци",{"v":20,"d":"20 лв."},{"v":25,"d":"25 лв."},{"$f":"БюджетПодробности[[#This Row],[Планиран разход]]-БюджетПодробности[[#This Row],[Действителен разход]]","v":{"v":-5,"d":"-5 лв."}},{"$f":"БюджетПодробности[[#This Row],[Действителен разход]]","v":{"v":25,"d":"25 лв."}}]
[null,"Медицински","Домашни любимци",null,null,{"$f":"БюджетПодробности[[#This Row],[Планиран разход]]-БюджетПодробности[[#This Row],[Действителен разход]]","v":{"v":0,"d":"0 лв."}},{"$f":"БюджетПодробности[[#This Row],[Действителен разход]]","v":{"v":0,"d":"0 лв."}}]
[null,"Играчки","Домашни любимци",null,null,{"$f":"БюджетПодробности[[#This Row],[Планиран разход]]-БюджетПодробности[[#This Row],[Действителен разход]]","v":{"v":0,"d":"0 лв."}},{"$f":"БюджетПодробности[[#This Row],[Действителен разход]]","v":{"v":0,"d":"0 лв."}}]
[null,"Инвестиционна сметка","Спестявания или инвестиции",{"v":200,"d":"200 лв."},{"v":200,"d":"200 лв."},{"$f":"БюджетПодробности[[#This Row],[Планиран разход]]-БюджетПодробности[[#This Row],[Действителен разход]]","v":{"v":0,"d":"0 лв."}},{"$f":"БюджетПодробности[[#This Row],[Действителен разход]]","v":{"v":200,"d":"200 лв."}}]
[null,"Пенсионна сметка","Спестявания или инвестиции",null,null,{"$f":"БюджетПодробности[[#This Row],[Планиран разход]]-БюджетПодробности[[#This Row],[Действителен разход]]","v":{"v":0,"d":"0 лв."}},{"$f":"БюджетПодробности[[#This Row],[Действителен разход]]","v":{"v":0,"d":"0 лв."}}]
[null,"Държавен","Данъци",{"v":300,"d":"300 лв."},{"v":300,"d":"300 лв."},{"$f":"БюджетПодробности[[#This Row],[Планиран разход]]-БюджетПодробности[[#This Row],[Действителен разход]]","v":{"v":0,"d":"0 лв."}},{"$f":"БюджетПодробности[[#This Row],[Действителен разход]]","v":{"v":300,"d":"300 лв."}}]
[null,"Локални","Данъци",null,null,{"$f":"БюджетПодробности[[#This Row],[Планиран разход]]-БюджетПодробности[[#This Row],[Действителен разход]]","v":{"v":0,"d":"0 лв."}},{"$f":"БюджетПодробности[[#This Row],[Действителен разход]]","v":{"v":0,"d":"0 лв."}}]
[null,"Областен","Данъци",null,null,{"$f":"БюджетПодробности[[#This Row],[Планиран разход]]-БюджетПодробности[[#This Row],[Действителен разход]]","v":{"v":0,"d":"0 лв."}},{"$f":"БюджетПодробности[[#This Row],[Действителен разход]]","v":{"v":0,"d":"0 лв."}}]
[null,"Разходи за автобус/такси","Транспорт",{"v":100,"d":"100 лв."},{"v":150,"d":"150 лв."},{"$f":"БюджетПодробности[[#This Row],[Планиран разход]]-БюджетПодробности[[#This Row],[Действителен разход]]","v":{"v":-50,"d":"-50 лв."}},{"$f":"БюджетПодробности[[#This Row],[Действителен разход]]","v":{"v":150,"d":"150 лв."}}]
[null,"Гориво","Транспорт",{"v":450,"d":"450 лв."},{"v":400,"d":"400 лв."},{"$f":"БюджетПодробности[[#This Row],[Планиран разход]]-БюджетПодробности[[#This Row],[Действителен разход]]","v":{"v":50,"d":"50 лв."}},{"$f":"БюджетПодробности[[#This Row],[Действителен разход]]","v":{"v":400,"d":"400 лв."}}]
[null,"Застраховка","Транспорт",{"v":300,"d":"300 лв."},{"v":300,"d":"300 лв."},{"$f":"БюджетПодробности[[#This Row],[Планиран разход]]-БюджетПодробности[[#This Row],[Действителен разход]]","v":{"v":0,"d":"0 лв."}},{"$f":"БюджетПодробности[[#This Row],[Действителен разход]]","v":{"v":300,"d":"300 лв."}}]
[null,"Лицензи ","Транспорт",{"v":25,"d":"25 лв."},{"v":25,"d":"25 лв."},{"$f":"БюджетПодробности[[#This Row],[Планиран разход]]-БюджетПодробности[[#This Row],[Действителен разход]]","v":{"v":0,"d":"0 лв."}},{"$f":"БюджетПодробности[[#This Row],[Действителен разход]]","v":{"v":25,"d":"25 лв."}}]
[null,"Поддръжка","Транспорт",{"v":100,"d":"100 лв."},{"v":50,"d":"50 лв."},{"$f":"БюджетПодробности[[#This Row],[Планиран разход]]-БюджетПодробности[[#This Row],[Действителен разход]]","v":{"v":50,"d":"50 лв."}},{"$f":"БюджетПодробности[[#This Row],[Действителен разход]]","v":{"v":50,"d":"50 лв."}}]
[null,"Такси за паркинг","Транспорт",null,null,{"$f":"БюджетПодробности[[#This Row],[Планиран разход]]-БюджетПодробности[[#This Row],[Действителен разход]]","v":{"v":0,"d":"0 лв."}},{"$f":"БюджетПодробности[[#This Row],[Действителен разход]]","v":{"v":0,"d":"0 лв."}}]
[null,"Плащане за автомобил","Транспорт",{"v":450,"d":"450 лв."},{"v":450,"d":"450 лв."},{"$f":"БюджетПодробности[[#This Row],[Планиран разход]]-БюджетПодробности[[#This Row],[Действителен разход]]","v":{"v":0,"d":"0 лв."}},{"$f":"БюджетПодробности[[#This Row],[Действителен разход]]","v":{"v":450,"d":"450 лв."}}]
[null,"Общо",null,{"$f":"SUBTOTAL(109,БюджетПодробности[Планиран разход])","v":{"v":7915,"d":"7,915 лв."}},{"$f":"SUBTOTAL(109,БюджетПодробности[Действителен разход])","v":{"v":7860,"d":"7,860 лв."}},{"$f":"SUBTOTAL(109,БюджетПодробности[Разлика])","v":{"v":55,"d":"55 лв."}}]

{"sheet":"Допълнителни данни","index":3,"n_rows":15,"n_cols":5,"rows_kept":15}
["Използвайте този работен лист, за да промените падащия списък за колоната \"Категория\" в таблицата \"Бюджет Подробности\" в работния лист \"Месечни разходи\". За целта променете или въведете нова категория в таблицата \"Справка за категориите в бюджета\", започвайки от клетка E2. Обобщената таблица, свързана с диаграмата \"Общ преглед на бюджета\" в работния лист \"Отчет за месечния бюджет\", започва в клетка B2.","Обобщена таблица за диаграмата \"Общ преглед на бюджета\"",null,null,"Справочен списък за категория в \"Подробности за бюджета\""]
[null,"Категория","Разходи",null,"Справка за категориите в бюджета"]
[null,"Деца",{"v":140,"d":"140 лв."},null,"Деца"]
[null,"Развлечения",{"v":358,"d":"358 лв."},null,"Развлечения"]
[null,"Храна",{"v":1320,"d":"1,320 лв."},null,"Храна"]
[null,"Подаръци и дарения",{"v":125,"d":"125 лв."},null,"Подаръци и дарения"]
[null,"Домакинство",{"v":2702,"d":"2,702 лв."},null,"Домакинство"]
[null,"Застраховка",{"v":900,"d":"900 лв."},null,"Застраховка"]
[null,"Заеми",{"v":200,"d":"200 лв."},null,"Заеми"]
[null,"Хигиенни материали",{"v":140,"d":"140 лв."},null,"Хигиенни материали"]
[null,"Домашни любимци",{"v":100,"d":"100 лв."},null,"Домашни любимци"]
[null,"Спестявания или инвестиции",{"v":200,"d":"200 лв."},null,"Спестявания или инвестиции"]
[null,"Данъци",{"v":300,"d":"300 лв."},null,"Данъци"]
[null,"Транспорт",{"v":1375,"d":"1,375 лв."},null,"Транспорт"]
[null,"Обща сума",{"v":7860,"d":"7,860 лв."}]